bitfinex/quotes_BTCUSD_20220201
["timestamp","ask_amount","ask_price","bid_price","bid_amount"]
[1643744516290,0.50311302,38392.0,38391.0,0.0111]
[1643744516491,0.10102102,38392.0,38391.0,0.0111]
[1643744517290,0.10102102,38392.0,38391.0,0.6611]
[1643744517893,0.14602102,38392.0,38391.0,0.6611]
[1643744518292,0.14258828,38392.0,38391.0,0.6611]
[1643744519093,0.14258828,38392.0,38391.0,0.0111]
[1643744520134,0.14258828,38392.0,38391.0,0.3611]
[1643744520535,0.14258828,38392.0,38391.0,0.0111]
[1643744520735,0.14342922,38392.0,38391.0,0.0111]
[1643744521134,0.14342922,38392.0,38391.0,0.4111]
[1643744522136,0.14342922,38392.0,38391.0,0.0111]
[1643744523189,0.14342922,38392.0,38391.0,0.84238214]
[1643744523396,0.09686196,38392.0,38391.0,1.51273677]
[1643744524188,0.09686196,38392.0,38391.0,2.16273677]
[1643744524391,0.09686196,38392.0,38391.0,1.51273677]
[1643744524992,0.09686196,38392.0,38391.0,1.28746414]
[1643744525192,0.06512034,38401.0,38392.0,1.4]
[1643744525390,0.70157203,38410.0,38401.0,0.27756278]
[1643744525391,0.3775,38410.0,38401.0,0.27756278]
[1643744525589,0.44267203,38411.0,38401.0,0.27756278]
[1643744525790,0.349992,38410.0,38401.0,0.27756278]
[1643744526196,0.349992,38410.0,38402.0,0.08654407]
[1643744526595,0.06510973,38409.0,38402.0,0.08654407]
[1643744526831,0.349992,38408.0,38404.0,0.00055997]
[1643744527030,0.5,38407.0,38402.0,0.08654407]
[1643744527232,0.55,38407.0,38402.0,0.08654407]
[1643744527431,0.75,38406.0,38394.0,0.41500505]
[1643744527640,0.75,38406.0,38401.0,0.02027135]
[1643744527641,0.24188088,38405.0,38401.0,0.02027135]
[1643744527832,0.06512306,38403.0,38394.0,0.1159]
[1643744528236,0.16365573,38402.0,38394.0,0.1159]
[1643744528434,0.16365573,38402.0,38394.0,0.36366064]
[1643744528632,0.42661712,38402.0,38394.0,0.36366064]
[1643744528832,0.05,38402.0,38394.0,0.36366064]
[1643744529133,0.0736727,38400.0,38394.0,0.1159]
[1643744529333,0.21255248,38399.0,38394.0,0.1159]
[1643744529535,0.21255248,38399.0,38391.0,0.3847]
[1643744529536,0.21255248,38399.0,38391.0,0.0111]
[1643744529932,0.26255248,38399.0,38391.0,0.0111]
[1643744530138,0.06513488,38398.0,38391.0,0.0111]
[1643744530335,0.21163868,38397.0,38391.0,0.0111]
[1643744530602,0.2677084,38399.0,38393.0,0.092539]
[1643744530788,0.21486285,38397.0,38391.0,0.11879465]
[1643744530986,0.2709325,38399.0,38391.0,0.11879465]
[1643744531189,0.2209325,38399.0,38391.0,0.11879465]
[1643744531390,0.06512683,38398.0,38391.0,0.11879465]
[1643744531689,0.05136344,38400.0,38393.0,0.00110403]
[1643744531888,0.00136344,38400.0,38393.0,0.00110403]
[1643744532388,0.00136344,38400.0,38397.0,0.22693163]
[1643744532692,0.05,38402.0,38397.0,0.22693163]
[1643744532900,0.06648687,38400.0,38397.0,0.32734206]
[1643744533091,0.00136351,38400.0,38397.0,0.32734206]
[1643744533289,0.00136351,38400.0,38398.0,0.345007]
[1643744533889,0.00090404,38404.0,38398.0,0.345007]
[1643744534090,0.0013635,38401.0,38397.0,0.32734206]
[1643744534546,0.0013635,38401.0,38400.0,0.86844699]
[1643744534746,0.0013635,38401.0,38400.0,1.55326109]
[1643744535047,0.00090404,38404.0,38400.0,1.55326109]
[1643744535048,0.00090404,38404.0,38400.0,1.31343199]
[1643744535260,0.00136348,38402.0,38401.0,0.756845]
[1643744535852,0.00166512,38402.0,38401.0,0.52646019]
[1643744536047,0.00166512,38402.0,38401.0,1.70482516]
[1643744536248,0.32407203,38412.0,38401.0,1.70482516]
[1643744536452,0.02101255,38413.0,38409.0,0.11820357]
[1643744536453,0.34508458,38413.0,38409.0,0.11820357]
[1643744536948,0.02101255,38413.0,38402.0,0.1154]
[1643744537149,0.02101255,38413.0,38401.0,1.13148519]
[1643744537551,0.02101255,38413.0,38406.0,0.24460267]
[1643744537755,0.00136339,38409.0,38406.0,0.24460267]
[1643744538187,0.00136339,38409.0,38406.0,0.34460267]
[1643744538588,0.06510235,38413.0,38406.0,0.34460267]
[1643744538787,0.44905633,38414.0,38407.0,0.08788759]
[1643744538987,0.00136338,38409.0,38406.0,0.34460267]
[1643744539187,0.00136338,38409.0,38406.0,0.1]
[1643744539587,0.00136338,38409.0,38405.0,0.09610697]
[1643744539789,0.0651025,38413.0,38401.0,0.95]
[1643744540189,0.00123924,38409.0,38401.0,1.3031389]
[1643744540391,0.00123924,38409.0,38402.0,0.57795992]
[1643744540989,0.0651025,38413.0,38402.0,0.344953]
[1643744541193,0.00136341,38407.0,38403.0,0.1]
[1643744541396,0.00136341,38407.0,38404.0,0.344939]
[1643744541834,0.00136341,38407.0,38405.0,0.1]
[1643744542048,0.00136341,38407.0,38406.0,1.044924]
[1643744542235,0.00028649,38408.0,38406.0,1.144924]
[1643744542435,0.00164989,38408.0,38407.0,0.7]
[1643744542638,0.00164989,38408.0,38407.0,0.1]
[1643744543040,0.00164989,38408.0,38407.0,0.19302231]
[1643744543241,0.00164989,38408.0,38407.0,0.24302231]
[1643744543438,0.00028649,38408.0,38407.0,0.58793331]
[1643744543638,0.00028649,38408.0,38407.0,0.48793331]
[1643744543837,0.00028649,38408.0,38407.0,1.93793331]
[1643744544039,0.00028649,38408.0,38407.0,2.32851888]
[1643744544638,0.00028649,38408.0,38407.0,0.97851888]
[1643744544840,0.00028649,38408.0,38407.0,0.444911]
[1643744545038,0.00028649,38408.0,38403.0,0.1159]
[1643744545442,0.00028649,38408.0,38406.0,0.010415]
[1643744546486,0.00028649,38408.0,38403.0,0.37729558]
[1643744546687,0.00028649,38408.0,38404.0,0.342631]
[1643744546891,0.00028649,38408.0,38403.0,0.09138593]
[1643744547288,0.00164989,38408.0,38403.0,0.09138593]
[1643744547888,0.00164989,38408.0,38397.0,0.53788275]
[1643744548088,0.10413664,38408.0,38400.0,0.07418034]
[1643744548292,0.14277324,38408.0,38398.0,0.1]
[1643744548490,0.00136345,38404.0,38398.0,0.1]
[1643744548892,0.00136345,38404.0,38399.0,0.10607002]
[1643744549557,0.06511278,38407.0,38399.0,0.10607002]
[1643744549755,0.00136347,38403.0,38399.0,0.10607002]
[1643744549955,0.00136347,38403.0,38400.0,0.34267]
[1643744550357,0.01664996,38408.0,38401.0,1.35]
[1643744550557,0.00028649,38408.0,38401.0,1.35]
[1643744550757,0.00028649,38408.0,38402.0,0.1]
[1643744551158,0.00028649,38408.0,38403.0,0.63817576]
[1643744551359,0.00028649,38408.0,38407.0,0.11217025]
[1643744551560,0.00028649,38408.0,38407.0,0.81604891]
[1643744552765,0.00028649,38408.0,38407.0,2.29588555]
[1643744553190,0.00028649,38408.0,38407.0,2.05865191]
[1643744553391,0.00028649,38408.0,38407.0,2.21059304]
[1643744553788,0.00028649,38408.0,38407.0,1.41059304]
[1643744554590,0.00028649,38408.0,38407.0,1.25865191]
[1643744555792,0.00028649,38408.0,38407.0,1.15865191]
[1643744556399,0.00028649,38408.0,38407.0,0.21604891]
[1643744557341,0.00028649,38408.0,38407.0,0.11217025]
[1643744557942,0.00028649,38408.0,38404.0,0.1236]
[1643744558348,0.00028649,38408.0,38399.0,0.010414]
[1643744558545,0.25381799,38408.0,38399.0,0.010414]
[1643744558749,0.0521,38407.0,38399.0,0.010414]
[1643744558942,0.11721113,38407.0,38399.0,0.11301346]
[1643744559147,0.31867474,38407.0,38399.0,0.11301346]
[1643744559342,0.00136515,38405.0,38400.0,0.10173274]
[1643744560442,0.00136514,38405.0,38400.0,0.10173274]
[1643744560890,0.00136514,38405.0,38399.0,0.12342946]
[1643744561297,0.00136514,38405.0,38399.0,0.11301346]
[1643744561489,0.31867474,38407.0,38399.0,0.11301346]
[1643744561692,0.00136513,38405.0,38399.0,0.11301346]
[1643744562190,0.00136513,38405.0,38399.0,0.18877487]
[1643744562793,0.31867474,38407.0,38399.0,0.18877487]
[1643744562993,0.0651166,38404.0,38398.0,0.00111071]
[1643744563196,0.31782717,38403.0,38398.0,0.00111071]
[1643744563593,0.350014,38402.0,38398.0,0.00111071]
[1643744563799,0.32221095,38401.0,38398.0,0.00111071]
[1643744564094,0.64734165,38399.0,38398.0,0.00055535]
[1643744564338,1.04945565,38399.0,38398.0,0.00055535]
[1643744564540,1.42489144,38399.0,38398.0,0.00055535]
[1643744564938,1.16458965,38399.0,38398.0,0.00055535]
[1643744565238,0.06513352,38397.0,38391.0,0.01554367]
[1643744565436,0.065135,38396.0,38391.0,0.01554367]
[1643744565640,0.350014,38395.0,38393.0,0.02117332]
[1643744565837,0.6440017,38394.0,38393.0,0.02117332]
[1643744566037,0.9940157,38394.0,38391.0,0.01554367]
[1643744566341,0.400014,38393.0,38391.0,0.0111]
[1643744566537,0.27295395,38392.0,38391.0,0.01221092]
[1643744566738,0.0521,38392.0,38391.0,0.00721092]
[1643744567538,0.0521,38392.0,38391.0,0.0061]
[1643744569787,0.1021,38392.0,38391.0,0.0061]
[1643744570688,0.10296527,38392.0,38391.0,0.0061]
[1643744571093,0.05296527,38392.0,38391.0,0.0061]
[1643744571304,0.00086527,38392.0,38391.0,0.0061]
[1643744571498,0.00086527,38392.0,38391.0,0.448872]
[1643744571691,0.00086527,38392.0,38391.0,1.648872]
[1643744573440,0.00086527,38392.0,38391.0,1.75373463]
[1643744573940,0.00086527,38392.0,38391.0,0.448872]
[1643744574142,0.00086527,38392.0,38391.0,0.348872]
[1643744574543,0.00086527,38392.0,38391.0,0.0061]
[1643744575594,0.00086527,38392.0,38391.0,0.6061]
[1643744575790,0.00086527,38392.0,38391.0,0.0061]
[1643744576590,0.00086527,38392.0,38391.0,0.3561]
[1643744579093,0.00086527,38392.0,38391.0,0.0061]
[1643744582548,0.00086527,38392.0,38391.0,0.5061]
[1643744583804,0.00086527,38392.0,38391.0,0.73334522]
[1643744584004,0.00086527,38392.0,38391.0,1.17611822]
[1643744584409,0.00086527,38392.0,38391.0,1.498873]
[1643744585005,0.00086527,38392.0,38391.0,0.948873]
[1643744585408,0.00086527,38392.0,38391.0,1.748873]
[1643744585607,0.00077875,38392.0,38391.0,1.748873]
[1643744586612,0.00077875,38392.0,38391.0,0.948873]
[1643744587442,0.00077875,38392.0,38391.0,1.648873]
[1643744587844,0.00077875,38392.0,38391.0,0.948873]
[1643744590696,0.00077875,38392.0,38391.0,0.848873]
[1643744590895,0.00085319,38392.0,38391.0,0.848873]
[1643744591295,0.00085319,38392.0,38391.0,1.398873]
[1643744592299,0.00085319,38392.0,38391.0,1.498873]
[1643744593295,0.00085319,38392.0,38391.0,1.798873]
[1643744593495,0.00085319,38392.0,38391.0,1.498873]
[1643744595041,0.00085319,38392.0,38391.0,0.948873]
[1643744596546,0.00085319,38392.0,38391.0,0.848873]
[1643744596742,0.00085319,38392.0,38391.0,0.348873]
[1643744596946,0.00085319,38392.0,38391.0,0.0061]
[1643744597742,0.00085319,38392.0,38391.0,0.006896]
[1643744598395,0.06599019,38392.0,38391.0,0.006896]
[1643744599693,0.06019988,38392.0,38391.0,0.006896]
[1643744600096,0.0521,38395.0,38391.0,0.006896]
[1643744600292,0.1021,38395.0,38391.0,0.006896]
[1643744600893,0.00080153,38392.0,38391.0,0.006896]
[1643744601299,0.00080153,38392.0,38391.0,0.00800691]
[1643744602342,0.00080153,38392.0,38391.0,0.006896]
[1643744603343,0.00080153,38392.0,38391.0,0.556896]
[1643744603542,0.00080153,38392.0,38391.0,0.006896]
[1643744604241,0.09709683,38392.0,38391.0,0.006896]
[1643744605047,0.00080153,38392.0,38391.0,0.006896]
[1643744606293,0.00080153,38392.0,38391.0,0.356896]
[1643744606493,0.00080153,38392.0,38391.0,0.006896]
[1643744609197,1.1,38390.0,38383.0,0.00017589]
[1643744609454,0.00080153,38392.0,38381.0,0.01247589]
[1643744609455,1.2,38388.0,38381.0,0.01247589]
[1643744609652,0.63489006,38387.0,38381.0,0.01247589]
[1643744610151,0.68489006,38387.0,38381.0,0.01247589]
[1643744610951,0.00069051,38386.0,38381.0,0.01247589]
[1643744611153,0.402114,38385.0,38381.0,0.01247589]
[1643744611551,0.402114,38385.0,38381.0,0.27396864]
[1643744611951,0.402114,38385.0,38381.0,0.03264907]
[1643744612151,0.402114,38385.0,38381.0,0.01355931]
[1643744612351,0.46726881,38385.0,38381.0,0.01355931]
[1643744612553,0.065153,38384.0,38381.0,0.01355931]
[1643744612751,0.402114,38383.0,38381.0,0.01355931]
[1643744612955,0.0521,38383.0,38381.0,0.01355931]
[1643744613192,0.0521,38383.0,38381.0,0.01247589]
[1643744614193,0.0511,38383.0,38381.0,0.01247589]
[1643744615501,0.130309,38387.0,38381.0,0.01247589]
[1643744615502,0.065147,38388.0,38381.0,0.24284332]
[1643744615698,0.00080153,38392.0,38381.0,0.24284332]
[1643744615898,0.00025552,38382.0,38381.0,0.06247589]
[1643744616101,0.00025552,38382.0,38381.0,1.75205863]
[1643744616304,0.00025552,38382.0,38381.0,1.85750945]
[1643744616699,0.00025552,38382.0,38381.0,1.81032882]
[1643744618646,0.00025552,38382.0,38381.0,1.704878]
[1643744619947,0.065147,38392.0,38386.0,0.10461635]
[1643744620345,0.115147,38392.0,38386.0,0.10461635]
[1643744620611,0.00043199,38382.0,38381.0,0.012]
[1643744620799,0.065145,38389.0,38381.0,0.012]
[1643744620800,0.0521,38385.0,38381.0,0.012]
[1643744621400,0.115149,38389.0,38381.0,0.012]
[1643744621599,0.115149,38389.0,38381.0,0.10991024]
[1643744621799,0.13030158,38387.0,38381.0,0.012]
[1643744622000,0.23069886,38386.0,38381.0,0.012]
[1643744622199,0.21499486,38386.0,38381.0,0.012]
[1643744623001,0.19545458,38387.0,38381.0,0.012]
[1643744624001,0.13030158,38387.0,38381.0,0.012]
[1643744624201,0.13030158,38387.0,38382.0,0.00108954]
[1643744624202,0.11295072,38387.0,38382.0,0.00108954]
[1643744624445,0.04779914,38387.0,38382.0,0.00108954]
[1643744625047,0.04779914,38387.0,38381.0,0.012]
[1643744625247,0.04779914,38387.0,38383.0,0.00108952]
[1643744625851,0.0002479,38385.0,38383.0,0.00108952]
[1643744626248,0.0002479,38385.0,38381.0,0.012]
[1643744626449,0.0002479,38385.0,38382.0,0.00108954]
[1643744626648,0.0002479,38385.0,38384.0,0.94821961]
[1643744627651,0.0002479,38385.0,38384.0,1.04663895]
[1643744628112,0.0002479,38385.0,38384.0,1.38948695]
[1643744628304,0.0002479,38385.0,38384.0,1.48948695]
[1643744628905,0.0002479,38385.0,38384.0,2.18948695]
[1643744630006,0.0002479,38385.0,38384.0,2.33629177]
[1643744630205,0.0002479,38385.0,38384.0,2.18948695]
[1643744630808,0.0002479,38385.0,38384.0,1.53948695]
[1643744631014,0.00022759,38385.0,38384.0,1.38948695]
[1643744631217,0.00022759,38385.0,38384.0,0.342848]
[1643744633050,0.00022759,38385.0,38384.0,0.49144977]
[1643744633658,0.00022759,38385.0,38384.0,0.34252857]
[1643744634351,0.00022759,38385.0,38384.0,0.44252857]
[1643744635802,0.00022759,38385.0,38384.0,0.34252857]
[1643744636001,0.01537954,38397.0,38385.0,1.1]
[1643744636206,0.01537954,38397.0,38385.0,1.19924888]
[1643744636207,0.00136055,38388.0,38385.0,1.19924888]
[1643744636501,0.00136055,38388.0,38386.0,0.342495]
[1643744636901,0.00136055,38388.0,38386.0,0.47778383]
[1643744637101,0.065136,38395.0,38386.0,0.47778383]
[1643744637302,0.00081758,38390.0,38385.0,1.19924888]
[1643744637604,0.00081758,38390.0,38386.0,0.342495]
[1643744637900,0.00081758,38390.0,38385.0,1.19924888]
[1643744638105,0.00081758,38390.0,38386.0,0.342499]
[1643744638303,0.13027215,38397.0,38387.0,0.14457727]
[1643744638304,0.065131,38397.0,38387.0,0.14457727]
[1643744638503,0.00136225,38390.0,38387.0,0.14457727]
[1643744638709,0.00136225,38390.0,38388.0,0.342475]
[1643744639005,0.00136225,38390.0,38387.0,0.14457727]
[1643744639204,0.00136225,38390.0,38388.0,0.342479]
[1643744639450,0.21209531,38396.0,38387.0,0.14457727]
[1643744639649,0.00136224,38391.0,38385.0,0.10034514]
[1643744640650,0.30226797,38396.0,38385.0,0.09924888]
[1643744640850,0.00136226,38390.0,38385.0,0.10034514]
[1643744641050,0.00021442,38389.0,38385.0,0.00109626]
[1643744641851,0.00021442,38389.0,38383.0,0.10730534]
[1643744642051,0.00021442,38389.0,38385.0,0.00109626]
[1643744643102,0.00021442,38389.0,38383.0,0.10730534]
[1643744643300,0.00021442,38389.0,38385.0,0.00109626]
[1643744643499,0.00021442,38389.0,38386.0,0.29668805]
[1643744644299,0.00021442,38389.0,38385.0,0.010419]
[1643744644500,0.00021442,38389.0,38385.0,0.00109626]
[1643744645500,0.00021442,38389.0,38385.0,0.28478343]
[1643744645701,0.00021442,38389.0,38385.0,0.28587969]
[1643744646705,0.00021442,38389.0,38385.0,0.28478343]
[1643744646946,0.00021442,38389.0,38385.0,0.28587969]
[1643744647149,0.00021442,38389.0,38386.0,0.58937363]
[1643744647951,0.00021442,38389.0,38386.0,0.72920409]
[1643744648150,0.00021442,38389.0,38386.0,0.58937363]
[1643744648453,0.00021442,38389.0,38387.0,0.09249364]
[1643744648650,0.00021442,38389.0,38388.0,1.92629396]
[1643744652714,0.00021442,38389.0,38388.0,1.97629396]
[1643744653717,0.00021442,38389.0,38388.0,1.92629396]
[1643744654121,0.00021442,38389.0,38388.0,2.02629396]
[1643744654370,0.00021442,38389.0,38388.0,2.17839396]
[1643744654667,9.162e-05,38390.0,38389.0,1.35]
[1643744654864,9.162e-05,38390.0,38389.0,1.792469]
[1643744655066,0.0619949,38401.0,38389.0,1.792469]
[1643744655067,0.0619949,38401.0,38390.0,0.09432018]
[1643744655281,0.0619949,38401.0,38397.0,0.1826982]
[1643744655476,0.0619949,38401.0,38398.0,0.342373]
[1643744655968,0.17379692,38412.0,38399.0,1.45]
[1643744656170,0.17379692,38412.0,38411.0,0.8401407]
[1643744656367,0.32723236,38417.0,38411.0,0.4901407]
[1643744656368,0.50102928,38417.0,38411.0,0.4901407]
[1643744656565,0.50102928,38418.0,38411.0,0.4901407]
[1643744656764,0.32723236,38418.0,38411.0,0.4901407]
[1643744657167,0.13654789,38419.0,38411.0,0.4901407]
[1643744657366,0.13654789,38419.0,38411.0,0.38562395]
[1643744657571,0.46378025,38419.0,38411.0,0.38562395]
[1643744658204,0.13654789,38419.0,38411.0,0.38562395]
[1643744659105,0.00136414,38417.0,38411.0,0.38562395]
[1643744660007,0.13654789,38419.0,38411.0,0.38562395]
[1643744660305,0.13654789,38419.0,38412.0,0.11867261]
[1643744660306,0.00111881,38416.0,38412.0,0.11867261]
[1643744660706,0.00111881,38416.0,38412.0,0.21241525]
[1643744660912,0.00111881,38416.0,38412.0,0.21263995]
[1643744661111,0.00021081,38418.0,38412.0,0.21263995]
[1643744661309,0.00111881,38416.0,38412.0,0.21263995]
[1643744661514,0.45,38415.0,38413.0,0.09774262]
[1643744662450,0.45,38415.0,38411.0,0.01812321]
[1643744663851,0.45111882,38415.0,38411.0,0.01812321]
[1643744664552,0.07927034,38414.0,38411.0,0.01812321]
[1643744664954,0.07927034,38414.0,38410.0,0.11112277]
[1643744665797,0.14457698,38414.0,38410.0,0.11112277]
[1643744666699,0.34451288,38418.0,38411.0,0.45]
[1643744666898,0.21430488,38418.0,38411.0,0.45]
[1643744667099,0.065101,38416.0,38411.0,0.45]
[1643744667711,0.065101,38416.0,38410.0,0.11112277]
[1643744667901,0.14060674,38416.0,38410.0,0.12153677]
[1643744668099,0.350048,38415.0,38410.0,0.13995118]
[1643744668299,0.14060674,38416.0,38410.0,0.12953718]
[1643744668501,0.00131412,38414.0,38410.0,0.12953718]
[1643744668899,0.00131412,38414.0,38410.0,0.11112277]
[1643744669100,0.00131412,38414.0,38410.0,0.40228709]
[1643744669545,0.065101,38416.0,38410.0,0.40228709]
[1643744669747,0.20164389,38419.0,38417.0,0.12434152]
[1643744669949,0.8,38417.0,38411.0,0.11367296]
[1643744670845,0.20164389,38419.0,38411.0,0.11367296]
[1643744671049,0.00020261,38415.0,38412.0,0.00021893]
[1643744671346,0.00020261,38415.0,38413.0,0.09281078]
[1643744675601,0.00020261,38415.0,38413.0,0.09303032]
[1643744677854,0.74867455,38414.0,38413.0,0.09303032]
[1643744678060,0.74867455,38414.0,38413.0,0.00021954]
[1643744678061,1.09872255,38414.0,38413.0,0.00021954]
[1643744678457,1.15082255,38414.0,38413.0,0.00021954]
[1643744678656,1.32373336,38414.0,38413.0,0.00021954]
[1643744678856,1.15082255,38414.0,38413.0,0.00021954]
[1643744679858,0.91500886,38411.0,38410.0,0.01858734]
[1643744680058,1.48302397,38411.0,38410.0,0.01858734]
[1643744680260,1.53302397,38411.0,38410.0,0.01858734]
[1643744680471,1.53302397,38411.0,38396.0,0.25682188]
[1643744680702,0.10026223,38405.0,38399.0,0.33187265]
[1643744681103,0.10026223,38405.0,38401.0,0.2134676]
[1643744681703,0.07639416,38405.0,38401.0,0.2134676]
[1643744682102,0.07489416,38405.0,38401.0,0.2134676]
[1643744682507,0.09956682,38407.0,38402.0,0.55]
[1643744684006,0.0521,38409.0,38405.0,0.11891806]
[1643744684207,0.0521,38409.0,38407.0,0.29029975]
[1643744684459,0.00020261,38414.0,38405.0,0.11891806]
[1643744685258,0.00020261,38414.0,38411.0,0.23583624]
[1643744685463,0.00020261,38414.0,38412.0,0.10085428]
[1643744685658,0.14227581,38417.0,38412.0,0.10085428]
[1643744685959,0.00019494,38417.0,38412.0,0.10085428]
[1643744686557,0.00136673,38416.0,38412.0,0.10085428]
[1643744687560,0.00019494,38417.0,38412.0,0.10085428]
[1643744687759,0.00136674,38416.0,38412.0,0.10085428]
[1643744688609,0.69770371,38413.0,38412.0,0.10085428]
[1643744689205,1.04770371,38413.0,38412.0,0.10085428]
[1643744689405,1.39775171,38413.0,38412.0,0.10085428]
[1643744689605,1.04775171,38413.0,38412.0,0.10085428]
[1643744689805,0.69770371,38413.0,38412.0,0.10085428]
[1643744690810,0.09770371,38413.0,38412.0,0.10085428]
[1643744691208,0.0851441,38413.0,38412.0,0.10085428]
[1643744691412,0.00124239,38414.0,38408.0,0.28325102]
[1643744691609,0.0845588,38413.0,38411.0,0.010414]
[1643744692449,0.0845588,38413.0,38411.0,0.12351233]
[1643744692849,0.0012424,38414.0,38411.0,0.12351233]
[1643744693052,0.07657957,38413.0,38411.0,0.12351233]
[1643744693650,0.06510506,38414.0,38411.0,0.12351233]
[1643744693850,0.06637544,38414.0,38411.0,0.12351233]
[1643744694050,0.42563159,38413.0,38411.0,0.12351233]
[1643744694451,0.42563159,38413.0,38411.0,0.010414]
[1643744695698,0.00018677,38412.0,38411.0,0.010414]
[1643744695900,0.35023477,38412.0,38411.0,0.010414]
[1643744696897,0.065112,38411.0,38406.0,0.12501413]
[1643744697098,0.16826063,38408.0,38406.0,0.12501413]
[1643744698098,0.23337363,38408.0,38406.0,0.12501413]
[1643744698298,0.09104655,38407.0,38406.0,0.12501413]
[1643744699099,0.09104655,38407.0,38406.0,0.02175767]
[1643744699555,0.09104655,38407.0,38401.0,0.23570304]
[1643744700257,0.08546936,38407.0,38403.0,0.12127701]
[1643744700459,0.08407936,38407.0,38403.0,0.12127701]
[1643744700657,0.08336936,38407.0,38403.0,0.12127701]
[1643744701056,0.38376254,38411.0,38403.0,0.12127701]
[1643744701260,0.0521,38410.0,38403.0,0.06644047]
[1643744701456,0.15947852,38409.0,38403.0,0.06644047]
[1643744701857,0.0521,38408.0,38403.0,0.06644047]
[1643744702955,0.08781722,38407.0,38403.0,0.06644047]
[1643744703200,0.0521,38408.0,38403.0,0.06644047]
[1643744704101,0.38177109,38412.0,38403.0,0.16644047]
[1643744704301,0.26211442,38418.0,38410.0,0.21069128]
[1643744704302,0.38177109,38415.0,38410.0,0.21069128]
[1643744704500,0.36290247,38418.0,38410.0,0.21069128]
[1643744704501,0.58885849,38417.0,38410.0,0.21069128]
[1643744704799,0.38177109,38416.0,38413.0,0.1013687]
[1643744705001,0.65,38414.0,38412.0,0.09864494]
[1643744705199,0.2070874,38417.0,38412.0,0.09864494]
[1643744705200,0.38177109,38417.0,38412.0,0.09864494]
[1643744705504,0.94910754,38416.0,38412.0,0.09864494]
[1643744705699,0.95047717,38416.0,38412.0,0.09662758]
[1643744706104,0.35141763,38416.0,38412.0,0.09662758]
[1643744706303,0.34641763,38416.0,38412.0,0.09662758]
[1643744706608,0.72818872,38416.0,38412.0,0.09662758]
[1643744706863,0.72681909,38416.0,38412.0,0.09662758]
[1643744707060,0.72818873,38416.0,38412.0,0.09662758]
[1643744708060,0.72720509,38416.0,38412.0,0.09662758]
[1643744708259,0.72844968,38416.0,38412.0,0.09662758]
[1643744708861,0.15417702,38406.0,38404.0,0.124]
[1643744709065,0.2132396,38405.0,38395.0,0.70156233]
[1643744709268,0.0521,38404.0,38400.0,0.06951299]
[1643744709466,0.0521,38403.0,38402.0,0.00086348]
[1643744709864,0.15186722,38403.0,38402.0,0.00086348]
[1643744710264,0.0521,38403.0,38402.0,0.00086348]
[1643744710465,0.0521,38403.0,38401.0,0.12173289]
[1643744710466,0.0521,38403.0,38401.0,0.1225964]
[1643744711505,0.0521,38403.0,38401.0,0.12173289]
[1643744711908,0.0521,38403.0,38401.0,0.17173289]
[1643744712304,0.0521,38403.0,38402.0,1.347334]
[1643744712706,0.0521,38412.0,38402.0,1.347334]
[1643744712911,0.0521,38412.0,38411.0,0.12057056]
[1643744713105,0.32704372,38413.0,38411.0,0.12057056]
[1643744713405,0.00090774,38415.0,38411.0,0.12057056]
[1643744713406,0.32704372,38414.0,38411.0,0.12057056]
[1643744713605,0.32795146,38415.0,38411.0,0.11577056]
[1643744714205,0.00218048,38415.0,38414.0,0.24373147]
[1643744714651,0.00218048,38415.0,38414.0,0.13902598]
[1643744715253,0.00090774,38415.0,38414.0,0.13902598]
[1643744715556,0.0050648,38422.0,38417.0,1.35]
[1643744715763,0.32490576,38426.0,38419.0,1.35]
[1643744715953,0.03372182,38430.0,38420.0,1.57928502]
[1643744716153,0.01,38439.0,38421.0,0.74082966]
[1643744716154,0.03372182,38431.0,38421.0,0.74082966]
[1643744716356,0.01,38439.0,38427.0,0.12478603]
[1643744716554,0.54925821,38438.0,38431.0,0.065053]
[1643744716756,0.01,38439.0,38432.0,0.347014]
[1643744716956,0.01,38439.0,38432.0,0.399114]
[1643744717156,0.01,38439.0,38434.0,0.065043]
[1643744717356,0.01,38439.0,38435.0,0.346983]
[1643744717554,0.01,38439.0,38436.0,0.33604885]
[1643744717754,0.00081775,38438.0,38437.0,0.412007]
[1643744717953,0.00081775,38438.0,38437.0,1.462007]
[1643744718211,0.00081775,38438.0,38437.0,1.662007]
[1643744718407,0.0032705,38444.0,38438.0,1.35]
[1643744718617,0.01,38449.0,38440.0,1.41503744]
[1643744718618,0.2273,38448.0,38440.0,1.41503744]
[1643744718809,0.2273,38448.0,38443.0,0.065029]
[1643744719009,0.2273,38448.0,38444.0,0.346887]
[1643744719208,0.2273,38448.0,38445.0,0.1]
[1643744719407,0.2273,38448.0,38447.0,0.28191814]
[1643744719612,0.2273,38448.0,38447.0,0.67877414]
[1643744719809,0.2273,38448.0,38447.0,0.82877414]
[1643744720009,0.2273,38448.0,38447.0,0.13902598]
[1643744722650,0.2273,38448.0,38447.0,0.23297373]
[1643744723250,0.2273,38448.0,38447.0,0.13902598]
[1643744723851,0.5773,38448.0,38447.0,0.13902598]
[1643744724252,0.5773,38448.0,38447.0,0.13863998]
[1643744724652,0.2273,38448.0,38447.0,0.13863998]
[1643744724855,0.8773,38448.0,38447.0,0.13863998]
[1643744725052,0.8773,38448.0,38439.0,0.13007]
[1643744725053,0.55,38447.0,38439.0,0.13007]
[1643744725253,0.02071677,38443.0,38439.0,0.13007]
[1643744725454,0.02071677,38443.0,38440.0,0.13007268]
[1643744725708,0.02071677,38443.0,38437.0,0.05]
[1643744725906,0.02071677,38443.0,38436.0,0.26016301]
[1643744726405,0.02071677,38443.0,38436.0,0.4879662]
[1643744726606,0.02071677,38443.0,38436.0,0.22480278]
[1643744726806,0.02071677,38443.0,38435.0,0.39186464]
[1643744727007,0.02071677,38443.0,38435.0,0.35645964]
[1643744727206,0.02071677,38443.0,38435.0,0.105084]
[1643744727414,0.09373875,38442.0,38434.0,0.05]
[1643744727810,0.10479648,38438.0,38430.0,0.180096]
[1643744728009,0.10479648,38438.0,38431.0,0.347016]
[1643744728211,0.10479648,38438.0,38432.0,0.1]
[1643744728513,0.10479648,38438.0,38432.0,0.165053]
[1643744728709,0.10479648,38438.0,38433.0,0.347004]
[1643744728909,0.10479648,38438.0,38433.0,0.412056]
[1643744729108,0.15162791,38440.0,38433.0,0.412056]
[1643744729347,0.15162791,38440.0,38433.0,0.065052]
[1643744729747,0.15162791,38440.0,38435.0,0.00116227]
[1643744730751,0.15162791,38440.0,38434.0,0.010406]
[1643744730951,0.15162791,38440.0,38436.0,0.00090074]
[1643744731156,1.25079832,38437.0,38436.0,0.00090074]
[1643744731351,1.60081732,38437.0,38436.0,0.00090074]
[1643744731753,0.5,38436.0,38425.0,0.49990174]